bitfinex/quotes_BTCUSD_20251021
["timestamp","ask_amount","ask_price","bid_price","bid_amount"]
[1761087198874,0.28054741,109240.0,109220.0,0.2014283]
[1761087199031,0.36391978,109240.0,109220.0,0.2014283]
[1761087200377,0.28054741,109240.0,109230.0,0.18309988]
[1761087200541,0.08255478,109240.0,109230.0,0.18309988]
[1761087202425,0.01466272,109240.0,109230.0,0.20140986]
[1761087202643,0.18307687,109250.0,109240.0,0.18308311]
[1761087202845,0.18307687,109250.0,109230.0,0.30337988]
[1761087202986,0.27289588,109250.0,109240.0,0.00278223]
[1761087203434,0.27289588,109250.0,109240.0,0.18586534]
[1761087203634,0.28625552,109250.0,109240.0,0.18586534]
[1761087203789,0.01435964,109250.0,109240.0,0.18586534]
[1761087203993,0.197426,109250.0,109240.0,0.18586534]
[1761087204196,0.196426,109250.0,109240.0,0.18586534]
[1761087204817,0.196426,109250.0,109240.0,0.00278223]
[1761087205242,0.196426,109250.0,109240.0,0.18586534]
[1761087206295,0.19651597,109250.0,109240.0,0.18586534]
[1761087206499,0.19651597,109250.0,109240.0,0.00278223]
[1761087207465,0.5574433,109250.0,109240.0,0.00278223]
[1761087207660,0.64138974,109250.0,109240.0,0.00278223]
[1761087207911,2.64138974,109250.0,109240.0,0.00278223]
[1761087208125,3.48862233,109250.0,109240.0,0.00278223]
[1761087208354,3.50667766,109250.0,109240.0,0.00278223]
[1761087208576,3.50667857,109250.0,109240.0,0.00278223]
[1761087208769,3.14575124,109250.0,109240.0,0.00278223]
[1761087209603,3.14575427,109250.0,109240.0,0.00278223]
[1761087210233,3.5066816,109250.0,109240.0,0.00278223]
[1761087210450,3.5076816,109250.0,109240.0,0.00278223]
[1761087210653,3.14675427,109250.0,109240.0,0.00278223]
[1761087210847,3.14575427,109250.0,109240.0,0.00278223]
[1761087211233,3.5076816,109250.0,109240.0,0.00278223]
[1761087211441,3.50768202,109250.0,109240.0,0.00278223]
[1761087211664,3.50868202,109250.0,109240.0,0.00278223]
[1761087213774,3.51868201,109250.0,109240.0,0.00278223]
[1761087214793,3.51868201,109250.0,109240.0,1e-08]
[1761087214995,3.57874997,109250.0,109240.0,1e-08]
[1761087215223,3.57875857,109250.0,109240.0,1e-08]
[1761087215444,3.60101043,109250.0,109240.0,1e-08]
[1761087215658,3.58469693,109250.0,109240.0,1e-08]
[1761087216307,3.65703444,109250.0,109240.0,1e-08]
[1761087216523,3.66606775,109250.0,109240.0,1e-08]
[1761087216730,3.64381589,109250.0,109240.0,1e-08]
[1761087217162,3.64281589,109250.0,109240.0,1e-08]
[1761087217563,3.64381589,109250.0,109240.0,1e-08]
[1761087217762,3.64581589,109250.0,109240.0,1e-08]
[1761087217944,3.64381589,109250.0,109240.0,1e-08]
[1761087218584,3.63833529,109250.0,109240.0,1e-08]
[1761087218786,3.58822899,109250.0,109240.0,1e-08]
[1761087219553,3.59022899,109250.0,109240.0,1e-08]
[1761087219985,3.46810899,109250.0,109240.0,1e-08]
[1761087220190,3.59022899,109250.0,109240.0,1e-08]
[1761087220372,3.56624693,109250.0,109240.0,1e-08]
[1761087220588,3.44412693,109250.0,109240.0,1e-08]
[1761087220800,3.61227003,109250.0,109240.0,1e-08]
[1761087221013,3.61427003,109250.0,109240.0,1e-08]
[1761087221244,3.59762295,109250.0,109240.0,1e-08]
[1761087221461,3.6142824,109250.0,109240.0,1e-08]
[1761087221670,3.4941624,109250.0,109240.0,1e-08]
[1761087221871,3.6142424,109250.0,109240.0,1e-08]
[1761087222294,3.4941624,109250.0,109240.0,1e-08]
[1761087222497,3.6142424,109250.0,109240.0,1e-08]
[1761087224661,3.6232424,109250.0,109240.0,1e-08]
[1761087224877,3.61730404,109250.0,109240.0,1e-08]
[1761087225311,3.59123878,109250.0,109240.0,1e-08]
[1761087227232,3.62322697,109250.0,109240.0,1e-08]
[1761087227413,3.57520387,109250.0,109240.0,1e-08]
[1761087227593,3.62322697,109250.0,109240.0,1e-08]
[1761087232045,3.59824786,109250.0,109240.0,1e-08]
[1761087232262,3.60658095,109250.0,109240.0,1e-08]
[1761087232663,3.58824787,109250.0,109240.0,1e-08]
[1761087232816,4.40074114,109250.0,109240.0,1e-08]
[1761087233143,4.40907584,109250.0,109240.0,1e-08]
[1761087233757,0.18311664,109220.0,109210.0,1e-08]
[1761087233960,3.48608353,109220.0,109210.0,1e-08]
[1761087234185,4.16226108,109220.0,109210.0,1e-08]
[1761087234451,4.20781254,109220.0,109210.0,1e-08]
[1761087235075,4.20981254,109220.0,109210.0,1e-08]
[1761087235285,4.23380783,109220.0,109210.0,1e-08]
[1761087236569,4.25987309,109220.0,109210.0,1e-08]
[1761087236769,3.45759433,109220.0,109210.0,1e-08]
[1761087237107,3.52803018,109220.0,109210.0,1e-08]
[1761087237320,3.47796963,109220.0,109210.0,1e-08]
[1761087237554,3.49233151,109220.0,109210.0,1e-08]
[1761087239227,3.47796963,109220.0,109210.0,1e-08]
[1761087239579,2.6854646,109220.0,109210.0,1e-08]
[1761087240200,2.73378172,109220.0,109210.0,1e-08]
[1761087240601,2.78178891,109220.0,109210.0,1e-08]
[1761087240796,2.76512029,109220.0,109210.0,1e-08]
[1761087241022,2.74977599,109220.0,109210.0,1e-08]
[1761087241242,2.74877599,109220.0,109210.0,1e-08]
[1761087241646,2.75077599,109220.0,109210.0,1e-08]
[1761087241844,2.70445887,109220.0,109210.0,1e-08]
[1761087242228,2.72644985,109220.0,109210.0,1e-08]
[1761087242422,2.73644984,109220.0,109210.0,1e-08]
[1761087242601,2.79988725,109220.0,109210.0,1e-08]
[1761087242801,2.77382199,109220.0,109210.0,1e-08]
[1761087243222,2.79988725,109220.0,109210.0,1e-08]
[1761087243417,2.79488725,109220.0,109210.0,1e-08]
[1761087243913,2.79407385,109220.0,109210.0,1e-08]
[1761087244123,2.77182199,109220.0,109210.0,1e-08]
[1761087245049,2.82013911,109220.0,109210.0,1e-08]
[1761087245278,2.77182199,109220.0,109210.0,1e-08]
[1761087245450,2.82013911,109220.0,109210.0,1e-08]
[1761087245588,2.77182199,109220.0,109210.0,1e-08]
[1761087245787,2.82013911,109220.0,109210.0,1e-08]
[1761087246821,2.77182199,109220.0,109210.0,1e-08]
[1761087247806,2.77186927,109220.0,109210.0,1e-08]
[1761087252786,2.78623171,109220.0,109210.0,1e-08]
[1761087252996,2.77186927,109220.0,109210.0,1e-08]
[1761087253569,2.32495589,109220.0,109210.0,1e-08]
[1761087253795,2.64916633,109220.0,109210.0,1e-08]
[1761087254221,2.69717352,109220.0,109210.0,1e-08]
[1761087254406,2.69517352,109220.0,109210.0,1e-08]
[1761087254644,2.69430017,109220.0,109210.0,1e-08]
[1761087254860,2.6963,109220.0,109210.0,1e-08]
[1761087255493,2.7006612,109220.0,109210.0,1e-08]
[1761087255688,2.71066119,109220.0,109210.0,1e-08]
[1761087257137,2.71083273,109220.0,109210.0,1e-08]
[1761087258091,2.70083274,109220.0,109210.0,1e-08]
[1761087258300,2.71083273,109220.0,109210.0,1e-08]
[1761087258520,2.73693221,109220.0,109210.0,1e-08]
[1761087258753,0.52315018,109200.0,109190.0,0.0002]
[1761087258972,2.84365885,109200.0,109190.0,0.0002]
[1761087259417,3.52131261,109200.0,109190.0,0.0002]
[1761087259848,3.52131261,109200.0,109190.0,0.00034824]
[1761087260951,3.52231261,109200.0,109190.0,0.00034824]
[1761087261972,3.52331261,109200.0,109190.0,0.00034824]
[1761087262396,3.51333191,109200.0,109190.0,0.00034824]
[1761087262641,2.59268444,109200.0,109190.0,0.00034824]
[1761087262997,2.56848397,109200.0,109190.0,0.00034824]
[1761087263244,2.59268444,109200.0,109190.0,0.00034824]
[1761087263445,2.59285756,109200.0,109190.0,0.00034824]
[1761087263644,0.04550691,109200.0,109190.0,0.18351519]
[1761087263819,0.22765709,109200.0,109190.0,0.18351519]
[1761087264033,0.19153177,109200.0,109190.0,0.20183188]
[1761087264237,0.24871452,109220.0,109190.0,0.30323519]
[1761087264481,0.26105672,109220.0,109200.0,0.18313518]
[1761087264609,0.18313341,109210.0,109200.0,0.18313518]
[1761087264815,0.22771758,109210.0,109200.0,0.18313518]
[1761087265215,0.20835052,109210.0,109200.0,0.30281518]
[1761087265450,0.53036625,109210.0,109200.0,0.30281518]
[1761087265644,0.60511145,109210.0,109200.0,0.11968]
[1761087266049,0.18315018,109200.0,109190.0,0.02788806]
[1761087266259,0.18315018,109200.0,109190.0,0.00034824]
[1761087266260,0.52197706,109200.0,109190.0,0.00034824]
[1761087266502,3.20920391,109200.0,109190.0,0.00034824]
[1761087266698,2.99634941,109200.0,109190.0,0.00034824]
[1761087267333,2.99634941,109200.0,109190.0,0.00134824]
[1761087268098,2.99634941,109200.0,109190.0,0.00234824]
[1761087268518,2.99634941,109200.0,109190.0,0.00134824]
[1761087268715,3.10120099,109200.0,109190.0,0.00034824]
[1761087269571,3.08184723,109200.0,109190.0,0.00034824]
[1761087269921,2.89869705,109200.0,109190.0,0.00104464]
[1761087270160,3.08184723,109200.0,109190.0,0.00104464]
[1761087270578,3.10117957,109200.0,109190.0,0.00104464]
[1761087271392,3.08184723,109200.0,109190.0,0.00104464]
[1761087271956,0.52315018,109200.0,109190.0,0.00104464]
[1761087278677,0.18313407,109210.0,109190.0,0.18421159]
[1761087278870,0.18313655,109210.0,109200.0,0.30271018]
[1761087279087,0.19227247,109220.0,109210.0,0.18313341]
[1761087279306,0.32106511,109220.0,109200.0,0.30305835]
[1761087279433,0.18313341,109210.0,109200.0,0.30305835]
[1761087280630,2.18311736,109220.0,109200.0,0.30305786]
[1761087280875,0.18313341,109210.0,109200.0,0.00034817]
[1761087281075,0.18313341,109210.0,109200.0,0.11986817]
[1761087281207,0.26412633,109210.0,109200.0,0.00034817]
[1761087281564,0.26412633,109210.0,109200.0,0.11986817]
[1761087281763,0.18313341,109210.0,109200.0,0.30301835]
[1761087281974,0.96681187,109210.0,109200.0,0.00034817]
[1761087282200,2.96681187,109210.0,109200.0,0.12086817]
[1761087282398,2.96681187,109210.0,109200.0,0.00134817]
[1761087282944,2.96681187,109210.0,109200.0,0.00234817]
[1761087283162,2.96681187,109210.0,109200.0,0.00134817]
[1761087283374,2.96681187,109210.0,109200.0,0.00034817]
[1761087283635,3.05663088,109210.0,109200.0,0.00034817]
[1761087284041,0.34,109210.0,109200.0,0.20181336]
[1761087284188,0.18313341,109210.0,109200.0,0.18349835]
[1761087284740,0.52313341,109210.0,109200.0,0.18349835]
[1761087285080,0.52313341,109210.0,109200.0,0.00034817]
[1761087285957,0.52313341,109210.0,109200.0,0.18349835]
[1761087286278,0.52313341,109210.0,109200.0,0.00034817]
[1761087286421,0.61295242,109210.0,109200.0,0.11982817]
[1761087286616,0.52313341,109210.0,109200.0,0.11982817]
[1761087287220,0.52313341,109210.0,109200.0,0.30297835]
[1761087287762,0.52313341,109210.0,109200.0,0.11982817]
[1761087287944,0.52313341,109210.0,109200.0,0.30293835]
[1761087288122,0.52313341,109210.0,109200.0,0.11978817]
[1761087288309,0.52313341,109210.0,109200.0,0.30293835]
[1761087288732,0.52313341,109210.0,109200.0,0.00034817]
[1761087288943,0.52313341,109210.0,109200.0,0.11978817]
[1761087289344,0.61295242,109210.0,109200.0,0.11978817]
[1761087290748,0.95162393,109210.0,109200.0,0.11978817]
[1761087291273,2.95162393,109210.0,109200.0,0.00034817]
[1761087291497,2.95162393,109210.0,109200.0,0.11978817]
[1761087293245,2.95162393,109210.0,109200.0,0.00034817]
[1761087294063,0.34,109210.0,109200.0,0.18349835]
[1761087294275,0.52313341,109210.0,109200.0,0.18349835]
[1761087294818,0.86180492,109210.0,109200.0,0.18349835]
[1761087295580,0.52313341,109210.0,109200.0,0.18349835]
[1761087295778,0.52313341,109210.0,109200.0,0.20181336]
[1761087297009,0.52178887,109220.0,109210.0,0.18313341]
[1761087297010,2.18311664,109220.0,109210.0,0.18313341]
[1761087297239,0.18311664,109220.0,109210.0,0.30249341]
[1761087297412,0.52178815,109220.0,109210.0,0.11936]
[1761087297618,0.52178815,109220.0,109210.0,0.30249341]
[1761087298047,0.52178815,109220.0,109210.0,0.11936]
[1761087298634,0.18311664,109220.0,109210.0,0.30249341]
[1761087298836,0.52178815,109220.0,109210.0,0.30249341]
[1761087300057,0.52178815,109220.0,109210.0,0.18313341]
[1761087300191,0.52178815,109220.0,109210.0,0.30249341]
[1761087300782,0.52178815,109220.0,109210.0,0.11936]
[1761087300983,0.52178815,109220.0,109210.0,0.30249341]
[1761087303155,0.52178815,109220.0,109200.0,0.2110361]
[1761087303327,0.52178815,109220.0,109210.0,0.11932]
[1761087303544,0.18311664,109220.0,109210.0,0.11932]
[1761087303742,0.52178815,109220.0,109200.0,0.02788592]
[1761087303943,0.86180492,109210.0,109200.0,0.00034817]
[1761087304131,0.86180492,109210.0,109200.0,0.11966817]
[1761087304834,0.77714104,109210.0,109200.0,0.11966817]
[1761087305401,0.8308289,109210.0,109200.0,0.11966817]
[1761087305763,0.8308289,109210.0,109200.0,0.30281835]
[1761087305973,0.59400763,109210.0,109200.0,0.30281835]
[1761087306321,0.58975496,109240.0,109210.0,0.18313341]
[1761087306530,0.04445988,109240.0,109230.0,0.18309988]
[1761087306897,0.00838208,109240.0,109230.0,0.18309988]
[1761087307099,0.00838208,109240.0,109230.0,0.20140986]
[1761087307300,0.26238971,109240.0,109230.0,0.20140986]
[1761087307511,0.43709074,109240.0,109230.0,0.20140986]
[1761087307794,0.445472,109240.0,109230.0,0.20140986]
[1761087308000,0.50850394,109240.0,109230.0,0.20140986]
[1761087308200,0.50850394,109240.0,109230.0,0.18309988]
[1761087308771,0.25449631,109240.0,109230.0,0.18309988]
[1761087309166,0.00838126,109240.0,109230.0,0.18309988]
[1761087309469,0.18484742,109250.0,109230.0,0.20140986]
[1761087309648,0.22926562,109250.0,109240.0,0.11924]
[1761087309852,0.22926513,109250.0,109240.0,0.11924]
[1761087310401,0.22926513,109250.0,109240.0,0.13754831]
[1761087310676,0.3190483,109250.0,109240.0,0.13754831]
[1761087310877,0.3190483,109250.0,109240.0,0.11924]
[1761087311299,0.67958948,109250.0,109240.0,0.11924]
[1761087312174,0.67958536,109250.0,109240.0,0.11924]
[1761087312522,0.58980219,109250.0,109240.0,0.11924]
[1761087313795,0.58979976,109250.0,109240.0,0.11924]
[1761087313981,0.20996174,109250.0,109240.0,0.32063142]
[1761087314173,0.19321156,109250.0,109240.0,0.30232311]
[1761087314981,0.22922102,109250.0,109240.0,0.11924]
[1761087315148,0.5897622,109250.0,109240.0,0.13754831]
[1761087315453,0.60591237,109250.0,109240.0,0.13754831]
[1761087316446,0.58917949,109250.0,109240.0,0.13754831]
[1761087317049,0.60590863,109250.0,109240.0,0.13754831]
[1761087317526,0.60590863,109250.0,109240.0,0.11924]
[1761087317922,0.60590745,109250.0,109240.0,0.11924]
[1761087319351,0.58917949,109250.0,109240.0,0.13636023]
[1761087320566,0.55375274,109250.0,109240.0,0.13636023]
[1761087321697,0.19321156,109250.0,109240.0,0.13636023]
[1761087322467,0.19320683,109250.0,109240.0,0.11924]
[1761087322671,0.55374801,109250.0,109240.0,0.11924]
[1761087323307,0.58974594,109250.0,109240.0,0.11924]
[1761087323675,0.67952307,109250.0,109240.0,0.11924]
[1761087325967,0.65443329,109250.0,109240.0,0.11924]
[1761087326158,0.63516182,109250.0,109240.0,0.11924]
[1761087327767,0.54538469,109250.0,109240.0,0.11924]
[1761087327967,0.00177715,109250.0,109240.0,0.32063142]
[1761087328175,0.00177715,109250.0,109240.0,0.7526833]
[1761087328393,0.00177715,109250.0,109240.0,1.12886558]
[1761087328795,0.00177715,109250.0,109240.0,1.12866558]
[1761087329250,0.00177715,109250.0,109240.0,1.12966558]
[1761087329501,0.00177715,109250.0,109240.0,0.7691244]
[1761087329697,0.00177715,109250.0,109240.0,0.73294212]
[1761087329902,0.00177715,109250.0,109240.0,1.13294212]
[1761087330131,0.00177715,109250.0,109240.0,1.13494212]
[1761087330762,0.00177715,109250.0,109240.0,0.929585]
[1761087330963,0.00177715,109250.0,109240.0,1.048625]
[1761087331398,0.00177715,109250.0,109240.0,1.30230788]
[1761087332617,0.00177715,109250.0,109240.0,1.33849016]
[1761087333706,0.00177715,109250.0,109240.0,1.67849016]
[1761087333917,2.0,109290.0,109280.0,0.18300033]
[1761087334064,0.20856406,109290.0,109280.0,0.30196033]
[1761087334291,0.19184884,109290.0,109280.0,0.30196033]
[1761087334645,0.00884949,109290.0,109280.0,0.30196033]
[1761087335066,0.00884949,109290.0,109280.0,0.30296033]
[1761087335281,0.00884949,109290.0,109280.0,0.18400033]
[1761087335498,0.44553172,109290.0,109280.0,0.11996]
[1761087335953,0.53375161,109290.0,109280.0,0.002]
[1761087336175,0.56971721,109290.0,109280.0,0.12096]
[1761087336580,0.48149732,109290.0,109280.0,0.12096]
[1761087336802,0.22781444,109290.0,109280.0,0.12096]
[1761087337304,0.22781444,109290.0,109280.0,0.11996]
[1761087337502,0.5880549,109290.0,109280.0,0.11996]
[1761087337731,0.22781444,109290.0,109280.0,0.11896]
[1761087337945,0.18303285,109270.0,109260.0,0.4]
[1761087338144,0.1830161,109280.0,109260.0,0.7020096]
[1761087338346,0.1830161,109280.0,109270.0,0.18303285]
[1761087339881,0.1830161,109280.0,109270.0,0.001]
[1761087340091,0.1830161,109280.0,109270.0,0.18403285]
[1761087340448,0.19264119,109290.0,109270.0,0.18403285]
[1761087340630,0.23695992,109290.0,109280.0,0.11892]
[1761087340831,0.1830161,109280.0,109270.0,0.18403285]
[1761087341065,0.1830161,109280.0,109270.0,0.30295285]
[1761087341264,0.19264119,109290.0,109270.0,0.30295285]
[1761087341525,0.1830161,109280.0,109270.0,0.30295285]
[1761087341958,0.1830161,109280.0,109270.0,0.30195285]
[1761087342693,0.1830161,109280.0,109270.0,0.30295285]
[1761087343513,0.1830161,109280.0,109270.0,0.11992]
[1761087343914,0.00049188,109290.0,109280.0,0.1830161]
[1761087344142,0.20273768,109290.0,109280.0,0.20131771]
[1761087344316,0.22779777,109290.0,109280.0,0.1830161]
[1761087344798,0.19184503,109290.0,109280.0,0.1830161]
[1761087344964,0.21108935,109290.0,109280.0,0.1830161]
[1761087345179,0.22779532,109290.0,109280.0,0.1830161]
[1761087345379,0.21944152,109290.0,109280.0,0.1830161]
[1761087345783,0.22083272,109290.0,109280.0,0.1830161]
[1761087345981,0.20412675,109290.0,109280.0,0.1830161]
[1761087346218,0.22083307,109290.0,109280.0,0.1830161]
[1761087346356,0.20412675,109290.0,109280.0,0.1830161]
[1761087346916,0.0211274,109290.0,109280.0,0.27383511]
[1761087347094,0.00188308,109290.0,109280.0,0.27383511]
[1761087347814,0.00188308,109290.0,109280.0,0.27483511]
[1761087349603,0.00188308,109290.0,109280.0,0.63507557]
[1761087350035,0.00188308,109290.0,109280.0,0.27483511]
[1761087350450,0.00188308,109290.0,109280.0,0.39363511]
[1761087351097,0.54512289,109290.0,109280.0,0.002]
[1761087351348,0.58107283,109290.0,109280.0,0.1208]
[1761087351645,0.54512289,109290.0,109280.0,0.1208]
[1761087351780,0.18488243,109290.0,109280.0,0.3038161]
[1761087351977,0.18488243,109290.0,109280.0,0.1208]
[1761087352848,0.18488243,109290.0,109280.0,0.3038161]
[1761087354639,0.18488243,109290.0,109280.0,0.3088161]
[1761087357110,0.18488243,109290.0,109280.0,0.1258]
[1761087357538,0.18488243,109290.0,109280.0,0.3088161]
[1761087358777,0.43847419,109290.0,109280.0,0.3088161]
[1761087359155,0.43847419,109290.0,109280.0,0.1258]
[1761087359345,0.18488243,109290.0,109280.0,0.1258]
[1761087359672,0.43847419,109290.0,109280.0,0.3088161]
[1761087360011,0.18488243,109290.0,109280.0,0.3088161]
[1761087360327,0.43847419,109290.0,109280.0,0.3088161]
[1761087360534,0.18488243,109290.0,109280.0,0.3088161]
[1761087360971,0.00188308,109290.0,109280.0,0.65222687]
[1761087362847,0.00188308,109290.0,109280.0,0.39863511]
[1761087365398,0.00188308,109290.0,109280.0,0.8774464]
[1761087367245,0.00188308,109290.0,109280.0,0.43481739]
[1761087368111,0.00188308,109290.0,109280.0,0.8774464]
[1761087368312,0.00188308,109290.0,109280.0,0.43481739]
[1761087368550,0.00188308,109290.0,109280.0,0.31601739]
[1761087368780,0.18488243,109290.0,109280.0,0.09681901]
[1761087369247,0.18488243,109290.0,109280.0,0.21545901]
[1761087369492,0.18488243,109290.0,109280.0,0.007]
[1761087369725,0.96751144,109290.0,109280.0,0.007]
[1761087370613,0.52488243,109290.0,109280.0,0.006]
[1761087371064,0.00188308,109290.0,109280.0,0.1890161]
[1761087371279,0.18488243,109290.0,109280.0,0.1880161]
[1761087371508,0.18488243,109290.0,109280.0,0.005]
[1761087371746,0.22166951,109290.0,109280.0,0.00336505]
[1761087371970,0.00188308,109290.0,109280.0,0.00336505]
[1761087372196,0.18488243,109290.0,109280.0,0.18638115]
[1761087373068,0.18488243,109290.0,109280.0,0.00336505]
[1761087373904,0.62751144,109290.0,109280.0,0.00336505]
[1761087374115,0.70856142,109290.0,109280.0,0.12196505]
[1761087374524,1.04856142,109290.0,109280.0,0.00336505]
[1761087374735,1.08455612,109290.0,109280.0,0.00336505]
[1761087375181,3.08455612,109290.0,109280.0,0.00336505]
[1761087376078,3.09291857,109290.0,109280.0,1e-08]
[1761087376305,3.11711904,109290.0,109280.0,1e-08]
[1761087376524,3.16528183,109290.0,109280.0,1e-08]
[1761087376742,3.19752341,109290.0,109280.0,1e-08]
[1761087377165,3.2075234,109290.0,109280.0,1e-08]
[1761087377374,3.14366622,109290.0,109280.0,1e-08]
[1761087377575,3.14366684,109290.0,109280.0,1e-08]
[1761087378150,3.14466684,109290.0,109280.0,1e-08]
[1761087378559,3.14366684,109290.0,109280.0,1e-08]
[1761087378719,3.15801988,109290.0,109280.0,1e-08]
[1761087378917,3.1994144,109290.0,109280.0,1e-08]
[1761087379127,3.18841441,109290.0,109280.0,1e-08]
[1761087379525,3.1994144,109290.0,109280.0,1e-08]
[1761087379746,3.18937002,109290.0,109280.0,1e-08]
[1761087379952,3.19937001,109290.0,109280.0,1e-08]
[1761087380150,3.17879008,109290.0,109280.0,1e-08]
[1761087380358,3.19280131,109290.0,109280.0,1e-08]
[1761087380577,2.32658075,109290.0,109280.0,1e-08]
[1761087380815,3.10920976,109290.0,109280.0,1e-08]
[1761087381140,3.11886794,109290.0,109280.0,1e-08]
[1761087381602,3.09385672,109290.0,109280.0,1e-08]
[1761087382209,3.09285672,109290.0,109280.0,1e-08]
[1761087382392,3.11686794,109290.0,109280.0,1e-08]
[1761087382561,3.11686149,109290.0,109280.0,1e-08]
[1761087382794,2.67423248,109290.0,109280.0,1e-08]
[1761087382995,2.89617277,109290.0,109280.0,1e-08]
[1761087383203,3.07917212,109290.0,109280.0,1e-08]
[1761087383646,3.08017212,109290.0,109280.0,1e-08]
[1761087386615,3.07182713,109290.0,109280.0,1e-08]
[1761087387309,3.07082713,109290.0,109280.0,1e-08]
[1761087387633,3.05255711,109290.0,109280.0,1e-08]
[1761087388038,3.07175576,109290.0,109280.0,1e-08]
[1761087388355,3.07908852,109290.0,109280.0,1e-08]
[1761087388536,3.07175576,109290.0,109280.0,1e-08]
[1761087390150,3.10599388,109290.0,109280.0,1e-08]
[1761087390531,3.18146142,109290.0,109280.0,1e-08]
[1761087390742,3.1592091,109290.0,109280.0,1e-08]
[1761087391171,3.1582091,109290.0,109280.0,1e-08]
[1761087391592,3.1592091,109290.0,109280.0,1e-08]
[1761087391791,3.13329863,109290.0,109280.0,1e-08]
[1761087392563,3.15918784,109290.0,109280.0,1e-08]
[1761087393126,3.19123737,109290.0,109280.0,1e-08]
[1761087393328,3.21348969,109290.0,109280.0,1e-08]
[1761087393708,3.18947847,109290.0,109280.0,1e-08]
[1761087394061,3.20383241,109290.0,109280.0,1e-08]
[1761087394235,3.27183167,109290.0,109280.0,1e-08]
[1761087395374,3.3199424,109290.0,109280.0,1e-08]
[1761087395754,3.29769008,109290.0,109280.0,1e-08]
[1761087396390,3.26564055,109290.0,109280.0,1e-08]
[1761087396750,3.28789287,109290.0,109280.0,1e-08]
[1761087396960,3.74052187,109290.0,109280.0,1e-08]
[1761087397187,3.28353892,109290.0,109280.0,1e-08]
[1761087397409,3.2612866,109290.0,109280.0,1e-08]
[1761087397743,3.23538545,109290.0,109280.0,1e-08]
[1761087397955,3.23438545,109290.0,109280.0,1e-08]
[1761087398401,3.18727472,109290.0,109280.0,1e-08]
[1761087398620,3.18627472,109290.0,109280.0,1e-08]
[1761087399050,3.18827472,109290.0,109280.0,1e-08]
[1761087399264,3.2362808,109290.0,109280.0,1e-08]
[1761087399454,3.18827472,109290.0,109280.0,1e-08]
[1761087399694,3.23429826,109290.0,109280.0,1e-08]
[1761087399914,3.23629826,109290.0,109280.0,1e-08]
[1761087400451,3.25065279,109290.0,109280.0,1e-08]
[1761087401274,3.20262925,109290.0,109280.0,1e-08]
[1761087402400,3.26666005,109290.0,109280.0,1e-08]
[1761087402617,3.25666006,109290.0,109280.0,1e-08]
[1761087402910,2.5230496,109260.0,109250.0,0.505]
[1761087403123,2.67735015,109260.0,109250.0,0.505]
[1761087403343,2.71209609,109260.0,109250.0,0.505]
[1761087403539,3.17875591,109260.0,109250.0,0.50677657]
[1761087405484,3.210797,109260.0,109250.0,0.50677657]
[1761087407859,3.17875591,109260.0,109250.0,0.50677657]
[1761087408708,3.16875591,109260.0,109250.0,0.50677657]
[1761087409134,2.7261269,109260.0,109250.0,0.50677657]
[1761087410231,2.69138096,109260.0,109250.0,0.50677657]
[1761087410650,3.13400997,109260.0,109250.0,0.50677657]
[1761087411402,2.69138096,109260.0,109250.0,0.50677657]
[1761087412309,0.23294096,109260.0,109250.0,0.50677657]
[1761087412534,0.20891015,109260.0,109250.0,0.50677657]
[1761087412708,0.21726613,109260.0,109250.0,0.50677657]
[1761087414361,0.21726726,109260.0,109250.0,0.50677657]
[1761087414563,0.20891015,109260.0,109250.0,0.50677657]
[1761087414965,0.21726746,109260.0,109250.0,0.50677657]
[1761087415172,0.20891015,109260.0,109250.0,0.50677657]
[1761087415645,0.21726839,109260.0,109250.0,0.50677657]
[1761087415857,0.20891015,109260.0,109250.0,0.50677657]
[1761087416288,0.20891015,109260.0,109250.0,0.68984293]
[1761087416498,0.20891015,109260.0,109250.0,0.50677657]
[1761087419426,0.20897626,109260.0,109250.0,0.50677657]
[1761087420077,0.21734057,109260.0,109250.0,0.50677657]
[1761087421347,0.68400039,109260.0,109250.0,0.50677657]
[1761087421558,1.1138194,109260.0,109250.0,0.50677657]
[1761087421770,1.2321394,109260.0,109250.0,0.50677657]
[1761087422203,0.78951388,109260.0,109250.0,0.50677657]
[1761087423296,0.75711876,109260.0,109250.0,0.50677657]
[1761087423715,0.66729975,109260.0,109250.0,0.50677657]
[1761087425461,0.54897975,109260.0,109250.0,0.50677657]
[1761087426562,0.5297811,109260.0,109250.0,0.50677657]
[1761087426973,0.5130496,109260.0,109250.0,0.50677657]
[1761087427664,0.5230496,109260.0,109250.0,0.50677657]
[1761087428761,0.18303285,109270.0,109260.0,0.1830496]
[1761087428983,0.1921964,109280.0,109260.0,0.31959456]
[1761087429207,0.1921964,109280.0,109260.0,0.3012896]
[1761087429208,0.23656511,109280.0,109260.0,0.3012896]
[1761087429396,0.18303285,109270.0,109260.0,0.3012896]
[1761087429655,0.1921964,109280.0,109260.0,0.3012896]
[1761087429874,0.18299935,109290.0,109280.0,0.1830161]
[1761087430076,0.2273618,109290.0,109280.0,0.3012561]
[1761087430250,0.18299935,109290.0,109280.0,0.3012561]
[1761087430483,0.18299935,109290.0,109280.0,0.11824]
[1761087430692,0.25016166,109290.0,109280.0,0.11824]
[1761087431293,0.20582497,109290.0,109280.0,0.11824]
[1761087431897,0.20582497,109290.0,109280.0,0.11924]
[1761087432097,0.20582497,109290.0,109280.0,0.13754161]
[1761087432877,0.18299935,109290.0,109280.0,0.13754161]
[1761087433247,0.18299935,109290.0,109280.0,0.11924]
[1761087435781,0.67115746,109300.0,109280.0,0.11924]
[1761087436006,0.18299935,109290.0,109280.0,0.11924]
[1761087436661,0.18299935,109290.0,109280.0,0.11824]
[1761087437067,0.18299935,109290.0,109280.0,0.3012561]
[1761087437489,0.00043767,109300.0,109290.0,0.18299935]
[1761087437605,0.18342028,109300.0,109290.0,0.18299935]
[1761087437805,0.00043767,109300.0,109290.0,0.18299935]
[1761087438455,0.00043767,109300.0,109290.0,0.63325062]
[1761087438651,0.18342039,109300.0,109290.0,0.11816]
[1761087439067,0.18342039,109300.0,109290.0,0.11916]
[1761087439304,0.18342039,109300.0,109290.0,0.11816]
[1761087439635,0.18342039,109300.0,109290.0,0.12016]
[1761087441781,0.18342039,109300.0,109290.0,0.30315935]
[1761087441979,0.18342039,109300.0,109290.0,0.12016]
[1761087442581,0.18342039,109300.0,109290.0,0.12012]
[1761087445986,0.18342039,109300.0,109290.0,0.30311935]
[1761087446607,0.18342028,109300.0,109290.0,0.30311935]
[1761087447025,0.18342028,109300.0,109290.0,0.12012]
[1761087448847,0.43696331,109300.0,109290.0,0.12012]
[1761087455904,0.69050634,109300.0,109290.0,0.002]
[1761087456113,0.96125864,109300.0,109290.0,0.002]
[1761087456290,1.11833078,109300.0,109290.0,0.002]
[1761087456499,1.03006867,109300.0,109290.0,0.002]
[1761087456899,1.03006867,109300.0,109290.0,0.001]